{"text_format":"3","workbook":"xlsx","n_sheets":2,"sheets":["เริ่ม","ตัววางแผนงบประมาณวันหยุดพักผ่อน"],"not_rendered":{"defined_names":1},"read":"whole","date_system":"1900"}

{"sheet":"เริ่ม","index":0,"n_rows":7,"n_cols":2,"rows_kept":7}
[null,"เกี่ยวกับเทมเพลตนี้"]
[null,"ติดตามค่าใช้จ่ายของคุณด้วยตัววางแผนงบประมาณในวันหยุดนี้"]
[null,"ใส่งบประมาณและค่าใช้จ่ายตามจริงของรายการต่างๆ ในตาราง"]
[null,"งบประมาณในวันหยุด ยอดรวมจำนวนเงินที่ใช้จ่ายจริง และผลต่างจะคำนวณโดยอัตโนมัติ"]
[null,"หมายเหตุ: "]
[null,"คำแนะนำเพิ่มเติมจะอยู่ในคอลัมน์ A ในเวิร์กชีตตัววางแผนงบประมาณในวันหยุด ข้อความนี้ได้ถูกซ่อนไว้โดยตั้งใจ เมื่อต้องการเอาข้อความออก ให้เลือกคอลัมน์ A แล้วเลือก ลบ เมื่อต้องการยกเลิกการซ่อนข้อความ ให้เลือกคอลัมน์ A แล้วเปลี่ยนสีฟอนต์"]
[null,"เมื่อต้องการเรียนรู้เพิ่มเติมเกี่ยวกับตาราง ให้กด SHIFT แล้วตามด้วย F10 ภายในตาราง แล้วเลือกตัวเลือก ตาราง จากนั้นเลือก ข้อความแสดงแทน"]

{"sheet":"ตัววางแผนงบประมาณวันหยุดพักผ่อน","index":1,"n_rows":32,"n_cols":12,"rows_kept":32,"merged":[[1,1,5,4],[2,8,2,9],[3,8,3,9],[4,8,4,9],[6,1,6,4],[6,8,6,11],[15,1,15,4],[15,8,15,11],[25,1,25,4],[25,8,25,11]]}
["ใส่งบประมาณและค่าใช้จ่ายตามจริงสำหรับแต่ละประเภทในตารางที่สอดคล้องกันในเวิร์กชีตนี้ คำแนะนำที่เป็นประโยชน์เกี่ยวกับวิธีใช้เวิร์กชีตนี้อยู่ในเซลล์ในคอลัมน์นี้ ใช้ลูกศรลงเพื่อเริ่มต้นใช้งาน "]
["ชื่อของเวิร์กชีตนี้จะอยู่ในเซลล์ด้านขวา","ตัววางแผนงบประมาณวันหยุดพักผ่อน"]
["งบประมาณในวันหยุดจะคำนวณโดยอัตโนมัติในเซลล์ K3",{"$nulls":7},"งบประมาณในวันหยุด",null,{"$f":"SUM(ของขวัญ[งบประมาณ],บรรจุภัณฑ์[งบประมาณ],(การท่องเที่ยว[งบประมาณ],(มื้ออาหาร[งบประมาณ],(ความบันเทิง[งบประมาณ],เบ็ดเตล็ด[งบประมาณ]))))","v":{"v":750,"d":"฿750.00"}}]
["จำนวนเงินที่ใช้จ่ายจริงจะคำนวณโดยอัตโนมัติในเซลล์ K4",{"$nulls":7},"ค่าใช้จ่ายตามจริง",null,{"$f":"SUM((ของขวัญ[ค่าใช้จ่ายจริง],(บรรจุภัณฑ์[ค่าใช้จ่ายจริง],(การท่องเที่ยว[ค่าใช้จ่ายจริง],(มื้ออาหาร[ค่าใช้จ่ายจริง],(ความบันเทิง[ค่าใช้จ่ายจริง],(เบ็ดเตล็ด[ค่าใช้จ่ายจริง])))))))","v":{"v":820,"d":"฿820.00"}}]
["ผลต่างจะคำนวณโดยอัตโนมัติในเซลล์ K5 คำแนะนำถัดไปอยู่ในเซลล์ A7",{"$nulls":7},"ผลต่าง (สูงกว่า/ต่ำกว่างบประมาณ)",null,{"$f":"SUM(K3-K4)","v":{"v":-70,"d":"-฿70.00"}}]
[]
["ป้ายชื่อของขวัญอยู่ในเซลล์ด้านขวาและป้ายชื่อมื้ออาหารในวันหยุดอยู่ในเซลล์ I7","ของชำร่วย",{"$nulls":6},"มื้ออาหารในวันหยุด"]
["ใส่ค่าใช้จ่ายของขวัญในตารางโดยเริ่มจากเซลล์ด้านขวา และค่าใช้จ่ายมื้ออาหารในตารางโดยเริ่มจากเซลล์ I8 คำแนะนำถัดไปอยู่ในเซลล์ A16","รายการ","งบประมาณ","ค่าใช้จ่ายจริง","ผลต่าง",{"$nulls":3},"รายการ","งบประมาณ","ค่าใช้จ่ายจริง","ผลต่าง"]
[null,"ครอบครัว",{"v":500,"d":"฿500.00"},{"v":495,"d":"฿495.00"},{"$f":"ของขวัญ[[#This Row],[งบประมาณ]]-ของขวัญ[[#This Row],[ค่าใช้จ่ายจริง]]","v":{"v":5,"d":"฿5.00"}},{"$nulls":3},"ของชำ",null,null,{"$f":"มื้ออาหาร[[#This Row],[งบประมาณ]]-มื้ออาหาร[[#This Row],[ค่าใช้จ่ายจริง]]","v":{"v":0,"d":"฿0.00"}}]
[null,"เพื่อน",{"v":250,"d":"฿250.00"},{"v":325,"d":"฿325.00"},{"$f":"ของขวัญ[[#This Row],[งบประมาณ]]-ของขวัญ[[#This Row],[ค่าใช้จ่ายจริง]]","v":{"v":-75,"d":"-฿75.00"}},{"$nulls":3},"การกรวดน้ำ",null,null,{"$f":"มื้ออาหาร[[#This Row],[งบประมาณ]]-มื้ออาหาร[[#This Row],[ค่าใช้จ่ายจริง]]","v":{"v":0,"d":"฿0.00"}}]
[null,"เพื่อนร่วมงาน",null,null,{"$f":"ของขวัญ[[#This Row],[งบประมาณ]]-ของขวัญ[[#This Row],[ค่าใช้จ่ายจริง]]","v":{"v":0,"d":"฿0.00"}},{"$nulls":3},"การตกแต่ง",null,null,{"$f":"มื้ออาหาร[[#This Row],[งบประมาณ]]-มื้ออาหาร[[#This Row],[ค่าใช้จ่ายจริง]]","v":{"v":0,"d":"฿0.00"}}]
[null,"ครู คนเลี้ยงเด็ก พี่เลี้ยงเด็ก เป็นต้น",null,null,{"$f":"ของขวัญ[[#This Row],[งบประมาณ]]-ของขวัญ[[#This Row],[ค่าใช้จ่ายจริง]]","v":{"v":0,"d":"฿0.00"}},{"$nulls":3},"อื่นๆ (แตะคอลัมน์สุดท้ายของแถวนี้เพื่อเพิ่มแถว)",null,null,{"$f":"มื้ออาหาร[[#This Row],[งบประมาณ]]-มื้ออาหาร[[#This Row],[ค่าใช้จ่ายจริง]]","v":{"v":0,"d":"฿0.00"}}]
[null,"การบริจาคเพื่อการกุศล",null,null,{"$f":"ของขวัญ[[#This Row],[งบประมาณ]]-ของขวัญ[[#This Row],[ค่าใช้จ่ายจริง]]","v":{"v":0,"d":"฿0.00"}},{"$nulls":3},"ผลรวม",{"$f":"SUBTOTAL(109,มื้ออาหาร[งบประมาณ])","v":{"v":0,"d":"฿0.00"}},{"$f":"SUBTOTAL(109,มื้ออาหาร[ค่าใช้จ่ายจริง])","v":{"v":0,"d":"฿0.00"}},{"$f":"SUBTOTAL(109,มื้ออาหาร[ผลต่าง])","v":{"v":0,"d":"฿0.00"}}]
[null,"อื่นๆ (แตะคอลัมน์สุดท้ายของแถวนี้เพื่อเพิ่มแถว)",null,null,{"$f":"ของขวัญ[[#This Row],[งบประมาณ]]-ของขวัญ[[#This Row],[ค่าใช้จ่ายจริง]]","v":{"v":0,"d":"฿0.00"}}]
[null,"ผลรวม",{"$f":"SUBTOTAL(109,ของขวัญ[งบประมาณ])","v":{"v":750,"d":"฿750.00"}},{"$f":"SUBTOTAL(109,ของขวัญ[ค่าใช้จ่ายจริง])","v":{"v":820,"d":"฿820.00"}},{"$f":"SUBTOTAL(109,ของขวัญ[ผลต่าง])","v":{"v":-70,"d":"-฿70.00"}}]
["ป้ายชื่อการบรรจุอยู่ในเซลล์ด้านขวา และป้ายชื่อความบันเทิงอยู่ในเซลล์ I16","การบรรจุ",{"$nulls":6},"ความบันเทิง"]
["ใส่ค่าใช้จ่ายการบรรจุในตารางโดยเริ่มจากเซลล์ด้านขวา และค่าใช้จ่ายความบันเทิงในตารางโดยเริ่มจากเซลล์ I17 คำแนะนำถัดไปอยู่ในเซลล์ A26","รายการ","งบประมาณ","ค่าใช้จ่ายจริง","ผลต่าง",{"$nulls":3},"รายการ","งบประมาณ","ค่าใช้จ่ายจริง","ผลต่าง"]
[null,"ห่อของขวัญ",null,null,{"$f":"บรรจุภัณฑ์[[#This Row],[งบประมาณ]]-บรรจุภัณฑ์[[#This Row],[ค่าใช้จ่ายจริง]]","v":{"v":0,"d":"฿0.00"}},{"$nulls":3},"บริการช่วยเหลือในงานเลี้ยง (บาร์เทนเดอร์ ผู้ให้บริการจัดเลี้ยง พนักงานทำความสะอาด เป็นต้น)",null,null,{"$f":"ความบันเทิง[[#This Row],[งบประมาณ]]-ความบันเทิง[[#This Row],[ค่าใช้จ่ายจริง]]","v":{"v":0,"d":"฿0.00"}}]
[null,"แท็ก",null,null,{"$f":"บรรจุภัณฑ์[[#This Row],[งบประมาณ]]-บรรจุภัณฑ์[[#This Row],[ค่าใช้จ่ายจริง]]","v":{"v":0,"d":"฿0.00"}},{"$nulls":3},"การตกแต่ง",null,null,{"$f":"ความบันเทิง[[#This Row],[งบประมาณ]]-ความบันเทิง[[#This Row],[ค่าใช้จ่ายจริง]]","v":{"v":0,"d":"฿0.00"}}]
[null,"อุปกรณ์ต่างๆ (ริบบิ้น เทป เป็นต้น)",null,null,{"$f":"บรรจุภัณฑ์[[#This Row],[งบประมาณ]]-บรรจุภัณฑ์[[#This Row],[ค่าใช้จ่ายจริง]]","v":{"v":0,"d":"฿0.00"}},{"$nulls":3},"อาหารและเครื่องดื่ม",null,null,{"$f":"ความบันเทิง[[#This Row],[งบประมาณ]]-ความบันเทิง[[#This Row],[ค่าใช้จ่ายจริง]]","v":{"v":0,"d":"฿0.00"}}]
[null,"กล่อง",null,null,{"$f":"บรรจุภัณฑ์[[#This Row],[งบประมาณ]]-บรรจุภัณฑ์[[#This Row],[ค่าใช้จ่ายจริง]]","v":{"v":0,"d":"฿0.00"}},{"$nulls":3},"ค่าเสื้อผ้า",null,null,{"$f":"ความบันเทิง[[#This Row],[งบประมาณ]]-ความบันเทิง[[#This Row],[ค่าใช้จ่ายจริง]]","v":{"v":0,"d":"฿0.00"}}]
[null,"ค่าไปรษณีย์",null,null,{"$f":"บรรจุภัณฑ์[[#This Row],[งบประมาณ]]-บรรจุภัณฑ์[[#This Row],[ค่าใช้จ่ายจริง]]","v":{"v":0,"d":"฿0.00"}},{"$nulls":3},"ตั๋ว",null,null,{"$f":"ความบันเทิง[[#This Row],[งบประมาณ]]-ความบันเทิง[[#This Row],[ค่าใช้จ่ายจริง]]","v":{"v":0,"d":"฿0.00"}}]
[null,"อื่นๆ (แตะคอลัมน์สุดท้ายของแถวนี้เพื่อเพิ่มแถว)",null,null,{"$f":"บรรจุภัณฑ์[[#This Row],[งบประมาณ]]-บรรจุภัณฑ์[[#This Row],[ค่าใช้จ่ายจริง]]","v":{"v":0,"d":"฿0.00"}},{"$nulls":3},"ทานอาหารค่ำนอกบ้าน",null,null,{"$f":"ความบันเทิง[[#This Row],[งบประมาณ]]-ความบันเทิง[[#This Row],[ค่าใช้จ่ายจริง]]","v":{"v":0,"d":"฿0.00"}}]
[null,"ผลรวม",{"$f":"SUBTOTAL(109,บรรจุภัณฑ์[งบประมาณ])","v":{"v":0,"d":"฿0.00"}},{"$f":"SUBTOTAL(109,บรรจุภัณฑ์[ค่าใช้จ่ายจริง])","v":{"v":0,"d":"฿0.00"}},{"$f":"SUBTOTAL(109,บรรจุภัณฑ์[ผลต่าง])","v":{"v":0,"d":"฿0.00"}},{"$nulls":3},"อื่นๆ (แตะคอลัมน์สุดท้ายของแถวนี้เพื่อเพิ่มแถว)",null,null,{"$f":"ความบันเทิง[[#This Row],[งบประมาณ]]-ความบันเทิง[[#This Row],[ค่าใช้จ่ายจริง]]","v":{"v":0,"d":"฿0.00"}}]
[{"$nulls":8},"ผลรวม",{"$f":"SUBTOTAL(109,ความบันเทิง[งบประมาณ])","v":{"v":0,"d":"฿0.00"}},{"$f":"SUBTOTAL(109,ความบันเทิง[ค่าใช้จ่ายจริง])","v":{"v":0,"d":"฿0.00"}},{"$f":"SUBTOTAL(109,ความบันเทิง[ผลต่าง])","v":{"v":0,"d":"฿0.00"}}]
["ป้ายชื่อการเดินทางอยู่ในเซลล์ด้านขวา และป้ายชื่อเบ็ดเตล็ดอยู่ในเซลล์ I26","การเดินทาง",{"$nulls":6},"เบ็ดเตล็ด"]
["ใส่ค่าใช้จ่ายการเดินทางในตารางโดยเริ่มจากเซลล์ด้านขวา และค่าใช้จ่ายเบ็ดเตล็ดในตารางโดยเริ่มจากเซลล์ I27","รายการ","งบประมาณ","ค่าใช้จ่ายจริง","ผลต่าง",{"$nulls":3},"รายการ","งบประมาณ","ค่าใช้จ่ายจริง","ผลต่าง"]
[null,"ตั๋วเครื่องบิน",null,null,{"$f":"การท่องเที่ยว[[#This Row],[งบประมาณ]]-การท่องเที่ยว[[#This Row],[ค่าใช้จ่ายจริง]]","v":{"v":0,"d":"฿0.00"}},{"$nulls":3},"ภาพถ่ายวันหยุด",null,null,{"$f":"เบ็ดเตล็ด[[#This Row],[งบประมาณ]]-เบ็ดเตล็ด[[#This Row],[ค่าใช้จ่ายจริง]]","v":{"v":0,"d":"฿0.00"}}]
[null,"ที่พัก",null,null,{"$f":"การท่องเที่ยว[[#This Row],[งบประมาณ]]-การท่องเที่ยว[[#This Row],[ค่าใช้จ่ายจริง]]","v":{"v":0,"d":"฿0.00"}},{"$nulls":3},"แก๊ส ",null,null,{"$f":"เบ็ดเตล็ด[[#This Row],[งบประมาณ]]-เบ็ดเตล็ด[[#This Row],[ค่าใช้จ่ายจริง]]","v":{"v":0,"d":"฿0.00"}}]
[null,"การเดินทาง",null,null,{"$f":"การท่องเที่ยว[[#This Row],[งบประมาณ]]-การท่องเที่ยว[[#This Row],[ค่าใช้จ่ายจริง]]","v":{"v":0,"d":"฿0.00"}},{"$nulls":3},"อื่นๆ (แตะคอลัมน์สุดท้ายของแถวนี้เพื่อเพิ่มแถว)",null,null,{"$f":"เบ็ดเตล็ด[[#This Row],[งบประมาณ]]-เบ็ดเตล็ด[[#This Row],[ค่าใช้จ่ายจริง]]","v":{"v":0,"d":"฿0.00"}}]
[null,"อื่นๆ (แตะคอลัมน์สุดท้ายของแถวนี้เพื่อเพิ่มแถว)",null,null,{"$f":"การท่องเที่ยว[[#This Row],[งบประมาณ]]-การท่องเที่ยว[[#This Row],[ค่าใช้จ่ายจริง]]","v":{"v":0,"d":"฿0.00"}},{"$nulls":3},"ผลรวม",{"$f":"SUBTOTAL(109,เบ็ดเตล็ด[งบประมาณ])","v":{"v":0,"d":"฿0.00"}},{"$f":"SUBTOTAL(109,เบ็ดเตล็ด[ค่าใช้จ่ายจริง])","v":{"v":0,"d":"฿0.00"}},{"$f":"SUBTOTAL(109,เบ็ดเตล็ด[ผลต่าง])","v":{"v":0,"d":"฿0.00"}}]
[null,"ผลรวม",{"$f":"SUBTOTAL(109,การท่องเที่ยว[งบประมาณ])","v":{"v":0,"d":"฿0.00"}},{"$f":"SUBTOTAL(109,การท่องเที่ยว[ค่าใช้จ่ายจริง])","v":{"v":0,"d":"฿0.00"}},{"$f":"SUBTOTAL(109,การท่องเที่ยว[ผลต่าง])","v":{"v":0,"d":"฿0.00"}}]